Cogmind - Beta 11.1 --- EXPLORER MODE // 2022.09.20 @ 19:25:20 Player: darlorth Result: Destroyed by P-80 Master with Gamma Rifle Performance ------------- Evolutions (7) 3500 Regions Visited (13) 2600 Robots Destroyed (238) 1190 Value Destroyed (10707) 10707 Prototype IDs (27) 540 Alien Tech Used (0) 0 Bonus (3942) 3942 TOTAL SCORE: 22479 Bonus ------- Triggered Max Security 1000 High Alert Combat Kills 2315 Follower Combat Kills 79 Aligned with FarCom 300 Scanned by Researcher 500 Friendly Fire -252 Cogmind --------- Core Integrity 0/1300 Matter 116/450 Energy 80/100 System Corruption 23% Temperature Cool (0) Movement Walking (120) Location -3/Testing Parts ------- > --- POWER (2) -------- (None) > --- PROPULSION (8) --- Myomer Leg > --- UTILITY (10) ----- Compact Matter Pod Advanced Target Analyzer > --- WEAPON (2) ------- (None) > --- INVENTORY (5) ---- Advanced Myomer Leg Advanced Terrain Scan Processor Antimissile System Heavy Dispersion Rifle Enhanced Nova Cannon Peak State ------------ > --- POWER ------------ Fusion Compressor Particle Reactor > --- PROPULSION ------- Improved Titanium Leg Flexi-carbon Leg Armored Leg Improved VSS Leg Myomer Leg Advanced VSS Leg Biometal Leg Biometal Leg > --- UTILITY ---------- Advanced Heat Sink Improved Coolant Injector Huge Storage Unit Experimental Optical Array Advanced Target Analyzer Microactuators Hardened Light Armor Plating Hardened Light Armor Plating Hardened Medium Armor Plating Advanced Dynamic Insulation System > --- WEAPON ----------- Fusion Bomb Launcher Particle Cleaver > --- INVENTORY -------- Flexi-carbon Leg Improved Energy Well Compact Matter Pod Advanced Terrain Scan Processor Recoil Nullifier Experimental ECM Suite Improved Propulsion Shielding Improved Light Armor Plating Layered Medium Armor Plating Improved Focal Shield Improved Shock Absorption System Antimissile System Improved System Shield Heavy Gatling Laser Long-range Proton Cannon HERF Cannon Compact HERF Cannon Enhanced Nova Cannon Multirail Hardcell Cannon Linear Accelerator Linear Accelerator Advanced Remote Datajack Power Sword Power Sword [Rating: 141] Favorites ----------- Power Particle Reactor Engine Angular Momentum Engine Power Core Light Fission Core Reactor Particle Reactor Propulsion Flexi-carbon Leg Leg Flexi-carbon Leg Utility Core Analyzer Device Improved Coolant Injector Storage Huge Storage Unit Processor Core Analyzer Hackware Makeshift Hacking Suite Protection Light Armor Plating Weapon Gauss Cannon Energy Gun Tesla Rifle Energy Cannon Long-range Proton Cannon Ballistic Gun High-powered Shotgun Ballistic Cannon Gauss Cannon Launcher Grenade Launcher Special Weapon Advanced Remote Datajack Impact Weapon Hammer Slashing Weapon Power Sword Build | -11 -10 -10 -10 -9 -8 -7 -6 -5 -4 -4 -4 -3 -3 ------- Run | Scr Mat Min Exi Min Mat Fac Fac Fac Fac Upp Upp Res Tes Slots Evolved 15 | . 1 . . . 4 2 2 2 2 . . 2 . Power 1 | . . . . . . . . . . . . 1 . Propulsion 6 | . . . . . 2 2 . . 2 . . . . Utility 8 | . 1 . . . 2 . 2 2 . . . 1 . Weapon . | . . . . . . . . . . . . . . Parts Attached 264 | 7 11 1 3 5 36 13 16 53 10 4 12 60 33 Power 21 | 1 . . . . 4 2 1 3 . . 1 7 2 Engine 8 | 1 . . . . 2 2 . 2 . . 1 . . Core 5 | . . . . . 2 . 1 1 . . . . 1 Reactor 8 | . . . . . . . . . . . . 7 1 Propulsion 56 | 2 . . 1 1 7 6 10 3 5 . 2 13 6 Treads . | . . . . . . . . . . . . . . Leg 56 | 2 . . 1 1 7 6 10 3 5 . 2 13 6 Wheel . | . . . . . . . . . . . . . . Hover . | . . . . . . . . . . . . . . Flight . | . . . . . . . . . . . . . . Utility 109 | 2 6 1 2 3 15 3 5 30 2 4 3 24 9 Device 46 | 2 . 1 . 1 4 1 2 19 . 2 . 10 4 Storage 14 | . 3 . 2 . 3 . . 2 . . 1 2 1 Processor 12 | . . . . . 3 1 2 2 . 1 1 2 . Hackware 1 | . . . . . . . . . . . . 1 . Protection 36 | . 3 . . 2 5 1 1 7 2 1 1 9 4 Artifact . | . . . . . . . . . . . . . . Weapon 78 | 2 5 . . 1 10 2 . 17 3 . 6 16 16 Energy Gun 6 | 1 . . . . 1 . . 1 . . 1 1 1 Energy Cannon 12 | . . . . . 1 . . 7 1 . . 3 . Ballistic Gun 10 | 1 . . . . 4 . . 2 . . 1 . 2 Ballistic Cannon 20 | . . . . . . 2 . 2 2 . 4 7 3 Launcher 7 | . 2 . . . 1 . . 1 . . . . 3 Special Weapon 1 | . . . . . . . . . . . . . 1 Impact Weapon 7 | . 3 . . 1 3 . . . . . . . . Slashing Weapon 15 | . . . . . . . . 4 . . . 5 6 Piercing Weapon . | . . . . . . . . . . . . . . Special Melee Weapon . | . . . . . . . . . . . . . . Unidentified Prototypes 21 | . . . 1 . 4 . . 4 . . . 3 9 Corrupted Parts 3 | . . . . . 1 . . . . . . . 2 System Corruption 9 | . . . . . 6 . . . . . . . 3 Parts Lost 49 | . . . . . 5 . . 2 . . 3 7 32 Power 3 | . . . . . . . . . . . . . 3 Propulsion 16 | . . . . . 2 . . . . . 1 3 10 Utility 22 | . . . . . 3 . . . . . 2 4 13 Weapon 8 | . . . . . . . . 2 . . . . 6 Highest Loss Streak 27 | . . . . . 2 . . 1 . . 2 2 27 To Critical Strikes . | . . . . . . . . . . . . . . Average Slot Usage (%) 97 | . 99 100 100 100 98 99 96 99 100 100 98 98 56 Engine 4 | . 12 12 12 12 5 3 2 2 5 5 5 . . Core 1 | . . . . . 2 3 3 2 . . . . 1 Reactor 1 | . . . . . . . . . . . . 8 3 Leg 33 | . 25 25 25 25 32 42 37 33 40 40 39 35 18 Device 12 | . 12 5 12 9 8 9 6 14 14 14 12 16 8 Storage 8 | . 10 12 12 12 10 9 6 6 10 10 8 5 3 Processor 12 | . . . . . 8 8 20 21 10 15 15 14 7 Protection 8 | . 13 18 12 14 12 7 6 5 11 5 7 5 5 Ballistic Gun 1 | . 1 . . . 4 10 . . . . . . . Ballistic Cannon 4 | . . . . . . 3 12 4 4 10 9 4 2 Launcher 1 | . 4 12 12 8 . . . . . . . . . Impact Weapon 3 | . 16 12 12 16 11 . . . . . . . . Slashing Weapon 1 | . . . . . . . . 2 . . . 4 2 Naked Turns . | . . . . . . . . . . . . . . Heaviest Build 153 | 7 24 24 52 23 100 113 114 129 131 124 125 153 151 Greatest Support 170 | 20 20 20 40 40 65 113 130 126 158 158 158 170 157 Greatest Overweight (x) 4 | . 1 1 1 . 1 1 1 1 . . . 1 4 Average Overweight (x) . | . . 1 . . . . . . . . . . . Largest Inventory Capacity 25 | 5 20 10 20 10 25 25 25 25 25 25 25 25 25 Average Capacity 21 | 5 9 10 10 10 17 25 25 25 25 25 25 25 16 Most Carried 25 | 5 10 10 10 10 21 25 25 25 21 22 25 25 25 Average Carried 19 | 2 8 10 9 10 12 23 24 23 19 21 23 23 14 Final Capacity 25 | 5 10 10 10 10 25 25 25 25 25 25 25 25 5 Final Carried 25 | 3 10 10 10 10 21 25 25 21 21 22 25 23 5 Class Distribution -------------------- 53% | Hacker-Mutant 15% | Hacker-Skirmisher 15% | Hacker-Assassin 15% | Scavenger-Mutant Dominant Class ---------------- Hacker-Mutant | -10/Materials Hacker-Mutant | -10/Mines Hacker-Mutant | -10/Exiles Hacker-Assassin | -9/Mines Hacker-Assassin | -8/Materials Hacker-Mutant | -7/Factory Hacker-Mutant | -6/Factory Hacker-Skirmisher | -5/Factory Hacker-Skirmisher | -4/Factory Hacker-Mutant | -4/Upper Caves Hacker-Mutant | -4/Upper Caves Scavenger-Mutant | -3/Research Hacker-Mutant | -3/Testing Resources | -11 -10 -10 -10 -9 -8 -7 -6 -5 -4 -4 -4 -3 -3 ----------- Run | Scr Mat Min Exi Min Mat Fac Fac Fac Fac Upp Upp Res Tes Matter Collected 6560 | 225 185 20 . 240 494 635 557 1527 150 118 473 1466 470 Remotely 624 | . . . . . . . . . . . . 624 . Salvage Created 9218 | . 352 . . 123 1545 667 618 2342 210 86 300 1868 1107 Parts 396 | . 15 . . 3 62 34 35 95 7 4 16 91 34 Haulers Intercepted 9 | . 1 . . . 3 1 1 3 . . . . . Recyclers Shooed 3 | . . . . . 1 . . 2 . . . . . Parts Field Recycled . | . . . . . . . . . . . . . . Retrieved Matter . | . . . . . . . . . . . . . . Parts Self-Destructed . | . . . . . . . . . . . . . . Prevented . | . . . . . . . . . . . . . . Kills | -11 -10 -10 -10 -9 -8 -7 -6 -5 -4 -4 -4 -3 -3 ------- Run | Scr Mat Min Exi Min Mat Fac Fac Fac Fac Upp Upp Res Tes Combat Hostiles Destroyed 167 | . 4 . . 1 26 11 12 36 3 2 12 28 32 Melee 25 | . 2 . . 1 9 . . 4 . . . 8 1 Guns 17 | . . . . . 4 9 . 2 . . . . 2 Cannons 77 | . . . . . . 2 11 27 2 2 12 20 1 AOE 33 | . 2 . . . 2 . 1 . . . . . 28 Classes Destroyed 22 | . 6 . . 2 5 1 . 2 . . . . 6 Worker 11 | . . . . 3 2 2 . 3 . . . 1 . Builder 6 | . . . . . . . . 2 . . . 4 . Tunneler 3 | . . . . 1 2 . . . . . . . . Hauler 9 | . 1 . . . 3 1 1 3 . . . . . Recycler 13 | . 2 . . . 2 3 1 4 . . . 1 . Mechanic 1 | . 1 . . . . . . . . . . . . Operator 5 | . . . . . 3 . 1 . . . . 1 . Watcher 22 | . 2 . . . 3 1 5 6 . . . 4 1 Swarmer 31 | . 2 . . . 2 4 3 11 . . 8 1 . Saboteur 2 | . . . . . . . . . . . . . 2 Grunt 58 | . 2 . . 1 16 1 2 13 . 1 2 4 16 Brawler 3 | . . . . . 1 1 . . . . . . 1 Duelist 4 | . . . . . 1 . . . . . . . 3 Protector 2 | . . . . . . . . . . . . . 2 Sentry 17 | . . . . . 4 1 1 3 1 . 1 6 . Specialist 1 | . . . . . . . . . . . . . 1 Hunter 14 | . . . . . 2 2 4 2 2 . 1 . 1 Programmer 31 | . . . . . . 2 2 6 . 1 . 17 3 Behemoth 1 | . . . . . . . . 1 . . . . . Striker 2 | . . . . . . . . . . . . . 2 Alpha 7 1 | . . . . . . . . . . . . . 1 Knight 1 | . . . . . . . . . . . . . 1 Best Kill Streak 20 | . 3 . . 2 5 4 5 8 1 1 4 7 20 Combat Bots Only 19 | . 2 . . 1 6 3 3 4 1 1 4 4 19 Max Kills in Single Turn 6 | . 1 . . 1 2 2 4 2 1 1 1 2 6 Gunslinging . | . . . . . . . . . . . . . . Exploded 6 | . 1 . . . 1 . 1 . . . . . 6 Melee 1 | . 1 . . 1 1 . . 1 . . . 1 1 Uniques/NPCs Destroyed . | . . . . . . . . . . . . . . Combat | -11 -10 -10 -10 -9 -8 -7 -6 -5 -4 -4 -4 -3 -3 -------- Run | Scr Mat Min Exi Min Mat Fac Fac Fac Fac Upp Upp Res Tes Damage Taken 10983 | . 124 . . 78 1269 486 352 1876 171 35 560 2240 3792 Core 1937 | . 14 . . 7 274 40 59 180 39 . 11 120 1193 Absorbed by Shields 82 | . . . . . . 82 . . . . . . . Redirected to Shielding 450 | . . . . . . . . 131 . . . 137 182 Core Remaining (%) 86 | 100 . . . 91 50 94 93 82 . . 95 . . Volleys Fired 337 | . 4 . . . 16 37 38 105 8 5 28 73 23 Largest 2 | . 1 . . . 2 2 2 2 2 2 2 2 2 Hottest 182 | . 30 . . . 50 96 96 162 162 105 122 182 132 Shots Fired 638 | . 4 . . 1 28 74 76 198 14 10 56 146 31 Gun 103 | . . . . . 24 56 . 11 . . 7 . 5 Cannon 510 | . . . . . . 18 76 187 14 10 49 146 10 Launcher 20 | . 4 . . 1 4 . . . . . . . 11 Special 5 | . . . . . . . . . . . . . 5 Kinetic 534 | . . . . . 24 74 76 152 8 10 56 119 15 Thermal . | . . . . . . . . . . . . . . Explosive 20 | . 4 . . 1 4 . . . . . . . 11 Electromagnetic 79 | . . . . . . . . 46 6 . . 27 . Robot Hit Streak 37 | . 2 . . 3 12 10 14 37 8 3 13 25 18 Robot Miss Streak 5 | . . . . . 2 5 1 2 2 1 2 2 1 Penetration Max 1 | . . . . . . . . 1 . . . . 1 Secondary Targets 2 | . . . . . 1 1 . . . . . . . Max Gunslinging Chain 1 | . . . . . 1 1 . . . . . . . Shots Hit Robots 681 | . 11 . . 9 119 58 60 183 10 6 39 158 28 Core Hits 384 | . 8 . . 2 38 38 28 86 4 4 19 68 89 Critical Kills 8 | . . . . 1 6 . . . . . . . 1 Critical Parts Destroyed 22 | . 1 . . 2 16 . . . . . . . 3 Critical Strikes 112 | . 1 . . 3 23 3 16 27 2 . 5 26 6 Destroy 6 | . . . . . 1 1 . . . . . . 4 Blast 60 | . . . . . . 2 16 20 1 . 5 15 1 Corrupt 6 | . . . . . . . . 4 1 . . 1 . Smash 26 | . 1 . . 3 22 . . . . . . . . Sever 14 | . . . . . . . . 3 . . . 10 1 Melee Attacks 200 | . 11 . . 10 102 . . 28 . . . 43 6 Impact 123 | . 11 . . 10 102 . . . . . . . . Slashing 77 | . . . . . . . . 28 . . . 43 6 Piercing . | . . . . . . . . . . . . . . Sneak Attacks 21 | . 4 . . 4 9 . . 3 . . . 1 . Combat Hostiles . | . . . . . . . . . . . . . . Follow-up Attacks 21 | . . . . . 14 . . 2 . . . 5 . Damage Inflicted 30469 | . 522 . . 434 3953 1255 1928 5613 330 186 1147 6074 9027 Guns 1978 | . . . . . 401 909 . 240 . . 163 . 265 Cannons 12250 | . . . . . . 346 1553 4196 330 186 984 4316 339 Explosions 9356 | . 172 . . 81 362 . 375 58 . . . . 8308 Melee 6853 | . 350 . . 353 3190 . . 1104 . . . 1741 115 Ramming 32 | . . . . . . . . 15 . . . 17 . Kinetic 12879 | . . . . . 401 1255 1553 3481 185 186 1147 4067 604 Thermal 433 | . . . . . . . 375 58 . . . . . Explosive 8923 | . 172 . . 81 362 . . . . . . . 8308 Electromagnetic 1349 | . . . . . . . . 955 145 . . 249 . Impact 3893 | . 350 . . 353 3190 . . . . . . . . Slashing 2960 | . . . . . . . . 1104 . . . 1741 115 Piercing . | . . . . . . . . . . . . . . Highest Corruption 23 | . 1 1 1 1 9 . 1 3 . . . 14 23 Average Corruption 4 | . 1 1 1 1 3 . 1 2 . . . 7 19 Corruption Purged 6 | . . . . . . . . . . . . 6 . Corruption Blocked . | . . . . . . . . . . . . . . Effects 120 | . 4 . 1 3 19 . 5 18 . . . 52 18 Message Errors 26 | . 2 . . . 3 . 1 5 . . . 14 1 Matter Fused 21 | . . . . . 5 . 2 4 . . . 6 4 Heat Flow Errors 18 | . 1 . . . 1 . 1 3 . . . 9 3 Energy Discharges 14 | . 1 . 1 2 4 . . 1 . . . 3 2 Parts Rejected 3 | . . . . . 1 . . . . . . 2 . Data Loss (minor) 18 | . . . . . 1 . 1 3 . . . 9 4 Data Loss (major) 6 | . . . . . . . . 2 . . . 3 1 Misfires 7 | . . . . 1 2 . . . . . . 3 1 Alerts 1 | . . . . . . . . . . . . 1 . Misdirections 1 | . . . . . . . . . . . . . 1 Weapon Failures 5 | . . . . . 2 . . . . . . 2 1 Overload Shots . | . . . . . . . . . . . . . . Overflow Damage 1891 | . 91 . . 229 753 5 94 126 . . . 278 315 Projectiles 389 | . . . . . . 5 24 82 . . . 278 . Explosions 452 | . 13 . . 14 40 . 70 . . . . . 315 Melee 1050 | . 78 . . 215 713 . . 44 . . . . . Knockbacks 96 | . . . . 2 17 5 8 22 . . 5 34 3 Impact 20 | . . . . 2 17 . . 1 . . . . . Kinetic 71 | . . . . . . 5 8 19 . . 5 31 3 Secondary 5 | . . . . . . . . 2 . . . 3 . Self-Inflicted Damage 111 | . . . . . 16 . . . . . 26 . 69 Shots 4 | . . . . . 1 . . . . . 1 . 2 Rammed . | . . . . . . . . . . . . . . Targets Rammed 3 | . . . . . . . . 1 . . . 2 . Kicked 3 | . . . . . . . . 1 . . . 2 . Crushed . | . . . . . . . . . . . . . . Highest Temperature 237 | . 85 . . . 168 . 174 237 30 . 5 195 223 Average Temperature 67 | . 19 . . . 55 . 70 67 20 . 5 62 98 Received Heat Transfer 2571 | . 45 . . 21 765 48 18 501 9 12 111 201 840 Siege Activations . | . . . . . . . . . . . . . . Robots Corrupted 4 | . . . . . . . . 3 1 . . . . Combat Hostiles 4 | . . . . . . . . 3 1 . . . . Parts Fried 35 | . 3 . . 5 14 . . 8 1 . . 4 . Impact Corruptions 40 | . 3 . . 7 30 . . . . . . . . Robots Melted . | . . . . . . . . . . . . . . Combat Hostiles . | . . . . . . . . . . . . . . Parts Melted . | . . . . . . . . . . . . . . Heat Transferred 350 | . . . . . . . 300 50 . . . . . Parts Sabotaged 3 | . . . . . . . . . . . . . 3 Parts Stolen . | . . . . . . . . . . . . . . Parts Stripped . | . . . . . . . . . . . . . . Power Chain Reactions 1 | . . . . . . . . 1 . . . . . Missiles Intercepted . | . . . . . . . . . . . . . . Alert | -11 -10 -10 -10 -9 -8 -7 -6 -5 -4 -4 -4 -3 -3 ------- Run | Scr Mat Min Exi Min Mat Fac Fac Fac Fac Upp Upp Res Tes Peak Influence 2248 | . 201 4 . 107 381 210 286 368 116 . . 355 2248 Initial 61 | . . 4 . . 14 31 . 5 . . . 10 61 Average 142 | . 45 4 . 37 127 76 95 86 42 . . 108 1834 Maximum Alert Level 5 | . 1 . . . 1 1 1 1 . . . 1 5 Low Security (%) 82 | 100 88 100 . 100 76 95 75 83 100 . . 85 . Level 1 14 | . 11 . . . 23 4 24 16 . . . 14 . Level 2 . | . . . . . . . . . . . . . . Level 3 . | . . . . . . . . . . . . . . Level 4 . | . . . . . . . . . . . . . . Level 5 . | . . . . . . . . . . . . . . High Security . | . . . . . . . . . . . . . . Max Security 3 | . . . . . . . . . . . . . 99 Squads Dispatched 39 | . . 1 . . 5 3 3 6 1 . . 6 14 Investigation 3 | . . 1 . . 1 . . 1 . . . . . Extermination 9 | . . . . . . 1 1 3 . . . 4 . Reinforcement 13 | . . . . . 3 2 2 2 1 . . 2 1 Assault 13 | . . . . . . . . . . . . . 13 Garrison 1 | . . . . . 1 . . . . . . . . Intercept . | . . . . . . . . . . . . . . Searches Triggered . | . . . . . . . . . . . . . . Construction Impeded 1 | . . . . . . . 1 . . . . . . Haulers Reinforced 2 | . . . . . . . 1 1 . . . . . Active Scanning Responses . | . . . . . . . . . . . . . . Cargo Convoy Interrupts . | . . . . . . . . . . . . . . Stealth | -11 -10 -10 -10 -9 -8 -7 -6 -5 -4 -4 -4 -3 -3 --------- Run | Scr Mat Min Exi Min Mat Fac Fac Fac Fac Upp Upp Res Tes Distress Signals 6 | . 3 . . . . . 1 1 . . . 1 . Communications Jammed . | . . . . . . . . . . . . . . Distress Signals . | . . . . . . . . . . . . . . Times Spotted 268 | . 12 . . 4 38 15 19 53 3 2 14 43 65 Peak Tracking Total 25 | . 3 . . 2 4 3 3 5 1 1 3 5 25 Tactical Retreats 19 | . 1 . . 1 3 1 1 5 . . 1 3 3 Traps | -11 -10 -10 -10 -9 -8 -7 -6 -5 -4 -4 -4 -3 -3 ------- Run | Scr Mat Min Exi Min Mat Fac Fac Fac Fac Upp Upp Res Tes Traps Triggered 15 | . 2 . . . 4 3 . 2 1 . . 2 1 Indirectly . | . . . . . . . . . . . . . . Trap Hack Attempts . | . . . . . . . . . . . . . . Triggered . | . . . . . . . . . . . . . . Disarmed . | . . . . . . . . . . . . . . Reprogrammed . | . . . . . . . . . . . . . . Reused . | . . . . . . . . . . . . . . Traps Extracted . | . . . . . . . . . . . . . . Installed . | . . . . . . . . . . . . . . Triggered 4 | . . . . . . . . . . . 4 . . Machines | -11 -10 -10 -10 -9 -8 -7 -6 -5 -4 -4 -4 -3 -3 ---------- Run | Scr Mat Min Exi Min Mat Fac Fac Fac Fac Upp Upp Res Tes Machines Disabled 28 | . . . . . 1 . 16 2 1 . 1 3 4 Max in Single Turn 15 | . . . . . 1 . 15 1 1 . 1 1 1 Garrison Access 1 | . . . . . 1 . . . . . . . . Machines Sabotaged . | . . . . . . . . . . . . . . Garrisons Compromised . | . . . . . . . . . . . . . . Overloaded Fab Kills . | . . . . . . . . . . . . . . Hacking | -11 -10 -10 -10 -9 -8 -7 -6 -5 -4 -4 -4 -3 -3 --------- Run | Scr Mat Min Exi Min Mat Fac Fac Fac Fac Upp Upp Res Tes Machines Accessed 12 | . 6 1 . . 3 1 . . . 1 . . . Terminals 11 | . 6 1 . . 2 1 . . . 1 . . . Fabricators . | . . . . . . . . . . . . . . Repair Stations . | . . . . . . . . . . . . . . Recycling Units . | . . . . . . . . . . . . . . Scanalyzers . | . . . . . . . . . . . . . . Garrison Access 1 | . . . . . 1 . . . . . . . . Total Hacks 47 | . 28 3 . . 9 6 . . . 1 . . . Successful 38 | . 24 3 . . 6 4 . . . 1 . . . Failed 9 | . 4 . . . 3 2 . . . . . . . Catastrophic . | . . . . . . . . . . . . . . Database Lockouts . | . . . . . . . . . . . . . . Manual 7 | . 2 . 1 . 4 . . . . . . . . Terminals 45 | . 28 3 . . 7 6 . . . 1 . . . Fabricators . | . . . . . . . . . . . . . . Repair Stations . | . . . . . . . . . . . . . . Recycling Units . | . . . . . . . . . . . . . . Scanalyzers . | . . . . . . . . . . . . . . Garrison Access 2 | . . . . . 2 . . . . . . . . Terminal Hacks 37 | . 24 3 . . 5 4 . . . 1 . . . Record 17 | . 10 3 . . 3 . . . . 1 . . . Part Schematic 1 | . . . . . . 1 . . . . . . . Prototype ID Bank 2 | . 2 . . . . . . . . . . . . Branch Access Points 1 | . 1 . . . . . . . . . . . . Repair Station Index 1 | . 1 . . . . . . . . . . . . Alert Level 3 | . 3 . . . . . . . . . . . . Unreport Threat 6 | . 1 . . . 2 3 . . . . . . . Dispatch Records 1 | . 1 . . . . . . . . . . . . Security Status 1 | . 1 . . . . . . . . . . . . Surveillance Status 1 | . 1 . . . . . . . . . . . . Registered Prototypes 1 | . 1 . . . . . . . . . . . . Zone Layout 2 | . 2 . . . . . . . . . . . . Fabricator Hacks . | . . . . . . . . . . . . . . Repair Station Hacks . | . . . . . . . . . . . . . . Recycling Unit Hacks . | . . . . . . . . . . . . . . Scanalyzer . | . . . . . . . . . . . . . . Garrison Access Hacks 1 | . . . . . 1 . . . . . . . . Seal Access 1 | . . . . . 1 . . . . . . . . Unauthorized Hacks . | . . . . . . . . . . . . . . Terminals . | . . . . . . . . . . . . . . Fabricators . | . . . . . . . . . . . . . . Repair Stations . | . . . . . . . . . . . . . . Recycling Units . | . . . . . . . . . . . . . . Scanalyzers . | . . . . . . . . . . . . . . Garrison Access . | . . . . . . . . . . . . . . Data Cores Recovered . | . . . . . . . . . . . . . . Used . | . . . . . . . . . . . . . . Hacking Detections 9 | . 5 1 . . 2 1 . . . . . . . Full Trace Events 3 | . 1 1 . . 1 . . . . . . . . Feedback Events 1 | . 1 . . . . . . . . . . . . Corruption 1 | . 1 . . . . . . . . . . . . Feedback Blocked . | . . . . . . . . . . . . . . Robot Schematics Acquired . | . . . . . . . . . . . . . . Robots Built . | . . . . . . . . . . . . . . Authchips . | . . . . . . . . . . . . . . Time . | . . . . . . . . . . . . . . Total Robot Build Rating . | . . . . . . . . . . . . . . Part Schematics Acquired 4 | . . . . . . 1 . . . . . . 3 Parts Built . | . . . . . . . . . . . . . . Authchips . | . . . . . . . . . . . . . . Time . | . . . . . . . . . . . . . . Total Part Build Rating . | . . . . . . . . . . . . . . Parts Repaired . | . . . . . . . . . . . . . . Time . | . . . . . . . . . . . . . . Parts Recycled . | . . . . . . . . . . . . . . Recycled Matter . | . . . . . . . . . . . . . . Retrieved Matter . | . . . . . . . . . . . . . . Retrieved Components . | . . . . . . . . . . . . . . Parts Scanalyzed . | . . . . . . . . . . . . . . Part Schematics Acquired . | . . . . . . . . . . . . . . Parts Damaged . | . . . . . . . . . . . . . . Bothacking | -11 -10 -10 -10 -9 -8 -7 -6 -5 -4 -4 -4 -3 -3 ------------ Run | Scr Mat Min Exi Min Mat Fac Fac Fac Fac Upp Upp Res Tes Used RIF Installer . | . . . . . . . . . . . . . . Robots Hacked 1 | . . . . . . . . . . . . . 1 Non-combat . | . . . . . . . . . . . . . . Combat 1 | . . . . . . . . . . . . . 1 Robot Hacks Applied 1 | . . . . . . . . . . . . . 1 find_scanalyzer 1 | . . . . . . . . . . . . . 1 Relay Couplers Released . | . . . . . . . . . . . . . . Fabnet Peak Effective % . | . . . . . . . . . . . . . . Robots Rewired 2 | . . . . . . . . . . . . . 2 Allies Hacked . | . . . . . . . . . . . . . . Hacks Repelled . | . . . . . . . . . . . . . . Allies | -11 -10 -10 -10 -9 -8 -7 -6 -5 -4 -4 -4 -3 -3 -------- Run | Scr Mat Min Exi Min Mat Fac Fac Fac Fac Upp Upp Res Tes Total Allies 3 | . . . . 1 . . . . . . . . 2 Largest Group 2 | . . . . 1 1 . . . . . . . 2 Highest-Rated Group 158 | . . . . 31 31 . . . . . . . 158 Highest-Rated Ally 79 | . . . . 31 31 . . . . . . . 79 Total Orders . | . . . . . . . . . . . . . . Ally Attacks 20 | . . . . 7 . . . . . . . . 13 Total Damage 884 | . . . . 99 . . . . . . . . 785 Kills 4 | . . . . 3 . . . . . . . . 1 Allies Corrupted . | . . . . . . . . . . . . . . Allies Melted . | . . . . . . . . . . . . . . Intel | -11 -10 -10 -10 -9 -8 -7 -6 -5 -4 -4 -4 -3 -3 ------- Run | Scr Mat Min Exi Min Mat Fac Fac Fac Fac Upp Upp Res Tes Robot Analysis Total . | . . . . . . . . . . . . . . Derelict Logs Recovered 4 | . . . . 2 . . . . . 1 1 . . Drone Launches . | . . . . . . . . . . . . . . Drone Recoveries . | . . . . . . . . . . . . . . Exploration | -11 -10 -10 -10 -9 -8 -7 -6 -5 -4 -4 -4 -3 -3 ------------- Run | Scr Mat Min Exi Min Mat Fac Fac Fac Fac Upp Upp Res Tes Turns Passed 12349 | 80 1066 211 341 467 1460 955 994 2808 198 752 733 1952 332 Spaces Moved 7810 | 60 655 111 211 415 747 569 659 1789 137 592 526 1094 245 Core 177 | 12 . . . . . . . . . . . . 165 Treads . | . . . . . . . . . . . . . . Legs 7633 | 48 655 111 211 415 747 569 659 1789 137 592 526 1094 80 Wheels . | . . . . . . . . . . . . . . Hover . | . . . . . . . . . . . . . . Flight . | . . . . . . . . . . . . . . Fastest Speed 50 | 50 120 190 105 105 110 116 115 115 117 117 117 111 50 Average Speed 123 | 106 147 190 158 105 114 130 116 118 117 117 117 135 85 Slowest Speed 260 | 120 190 190 190 105 184 186 186 186 117 117 117 188 260 Overloaded Moves . | . . . . . . . . . . . . . . Propulsion Burnouts . | . . . . . . . . . . . . . . Robots Hopped . | . . . . . . . . . . . . . . Cave-ins Triggered . | . . . . . . . . . . . . . . Exploration Rate (%) 42 | 4 88 25 60 75 57 16 19 42 4 82 69 23 29 Regions Visited 13 Branch Regions 6 Pre-discovered Areas 5 | . . 1 . 2 . . . . . 1 1 . . Known Exits Taken 13 | 1 1 1 1 1 1 1 1 1 1 1 1 1 . Unknown Exits Taken . | . . . . . . . . . . . . . . Scrap Searched 6 | . . . . 2 . . . . . 2 2 . . Spaces Dug 5 | . . . . . . . . 2 . . . 1 2 Terrain Destroyed 348 | . 19 . . 9 21 5 63 39 1 5 30 20 136 Melee 4 | . . . . . . . . 2 . . . . 2 Projectile 95 | . . . . . . 5 14 28 1 5 22 20 . AOE 249 | . 19 . . 9 21 . 49 9 . . 8 . 134 Terrain Rammed . | . . . . . . . . . . . . . . Walls Destroyed . | . . . . . . . . . . . . . . Machines Disabled . | . . . . . . . . . . . . . . Actions | -11 -10 -10 -10 -9 -8 -7 -6 -5 -4 -4 -4 -3 -3 --------- Run | Scr Mat Min Exi Min Mat Fac Fac Fac Fac Upp Upp Res Tes Total 9586 | 76 731 111 215 430 1175 711 816 2238 157 639 586 1370 331 Wait 705 | . 26 . . . 247 55 73 206 . 38 9 51 . Move 7797 | 59 654 110 210 414 746 568 658 1788 136 591 525 1093 245 Hop . | . . . . . . . . . . . . . . Pick Up 172 | 10 16 . 1 1 32 14 11 27 3 1 8 31 17 Fast Attach 24 | . 1 . . . 5 4 2 4 . . 1 4 3 Attach 97 | 7 2 . . . 14 3 3 20 3 . 4 21 20 Detach 5 | . . . . . . . . 4 . . . . 1 Swap 144 | . 8 1 3 5 17 6 11 29 7 4 7 35 11 Drop 126 | . 9 . 1 2 17 14 20 29 . . 4 24 6 Fire 337 | . 4 . . . 16 37 38 105 8 5 28 73 23 Melee 166 | . 11 . . 8 81 . . 25 . . . 36 5 Ram . | . . . . . . . . . . . . . . Kick 3 | . . . . . . . . 1 . . . 2 . Crush . | . . . . . . . . . . . . . . Escape Stasis 10 | . . . . . . 10 . . . . . . . Rewire . | . . . . . . . . . . . . . . Trap . | . . . . . . . . . . . . . . Miscellaneous . | . . . . . . . . . . . . . . Route ------- -11/Scrapyard -10/Materials (discovered 2 exits: *Mat / *Min) -10/Mines -10/Exiles -9/Mines (discovered 2 exits: *Mat x2) -8/Materials (discovered 2 exits: *Fac x2) -7/Factory -6/Factory -5/Factory (discovered 3 exits: *Fac / *Upp x2) -4/Factory -4/Upper Caves -4/Upper Caves -3/Research (discovered 2 exits: *Tes x2) -3/Testing History --------- Turn | Location | Event 3 | -11/Scrapyard | Identified exit to Materials 3 | -11/Scrapyard | Discovered exit to Materials (range 15) 81 | -11/Scrapyard | Entered Materials 81 | -10/Materials | Evolved 1 slot: Utility x1 234 | -10/Materials | Identified exit to Materials 234 | -10/Materials | Discovered exit to Materials (range 9) 246 | -10/Materials | Identified exit to Mines 316 | -10/Materials | Build established: Hacker-Mutant 1147 | -10/Materials | Entered Mines 1215 | -10/Mines | Learned location of Storage (-8) 1216 | -10/Mines | Met a Derelict bent on vengeance 1350 | -10/Mines | Deemed a non-threat by the Exiles lab entrance 1350 | -10/Mines | Identified exit to Exiles 1350 | -10/Mines | Discovered exit to Exiles (range 5) 1358 | -10/Mines | Entered Exiles 1410 | -10/Exiles | Met 8R-AWN 1440 | -10/Exiles | Met EX-HEX 1493 | -10/Exiles | Met EX-BIN 1522 | -10/Exiles | Aligned with FarCom system 1524 | -10/Exiles | Given EX-Vault access code 1567 | -10/Exiles | Opened EX-Vault 1576 | -10/Exiles | Found Prototype Leg 1613 | -10/Exiles | Warned to stay clear of 0b10 Research branches 1613 | -10/Exiles | Identified Potential Leg 1645 | -10/Exiles | Met EX-DEC 1680 | -10/Exiles | Identified exit to Mines 1680 | -10/Exiles | Discovered exit to Mines (range 14) 1699 | -10/Exiles | Left Exiles lab with Potential Leg 1699 | -10/Exiles | Entered Mines 1953 | -9/Mines | Identified exit to Materials 1953 | -9/Mines | Discovered exit to Materials (range 13) 1989 | -9/Mines | Received a Mining Laser from a helpful Derelict 1993 | -9/Mines | Build established: Hacker-Assassin 2150 | -9/Mines | Discovered exit to Materials (range 16) 2166 | -9/Mines | Entered Materials 2166 | -8/Materials | Accompanied by 1 ally 2166 | -8/Materials | Evolved 4 slots: Propulsion x2, Utility x2 2773 | -8/Materials | Identified exit to Factory 2773 | -8/Materials | Discovered exit to Factory (range 15) 3104 | -8/Materials | Garrison activated, responded to threat 3555 | -8/Materials | Discovered exit to Factory (range 15) 3626 | -8/Materials | Entered Factory 3626 | -7/Factory | Evolved 2 slots: Propulsion x2 3753 | -7/Factory | Identified exit to Factory 3753 | -7/Factory | Discovered exit to Factory (range 10) 3973 | -7/Factory | Build established: Hacker-Mutant 4581 | -7/Factory | Entered another Factory area 4581 | -6/Factory | Evolved 2 slots: Utility x2 5549 | -6/Factory | Identified exit to Factory 5549 | -6/Factory | Discovered exit to Factory (range 15) 5575 | -6/Factory | Entered another Factory area 5575 | -5/Factory | Evolved 2 slots: Utility x2 5799 | -5/Factory | Identified exit to Upper Caves 5799 | -5/Factory | Discovered exit to Upper Caves (range 16) 5867 | -5/Factory | Build established: Hacker-Skirmisher 6099 | -5/Factory | Discovered exit to Upper Caves (range 14) 7287 | -5/Factory | Build established: Hacker-Assassin 7770 | -5/Factory | Spotted B-75 Beast 7787 | -5/Factory | Destroyed B-75 Beast 7991 | -5/Factory | Build established: Hacker-Skirmisher 8336 | -5/Factory | Identified exit to Factory 8336 | -5/Factory | Discovered exit to Factory (range 11) 8383 | -5/Factory | Entered another Factory area 8383 | -4/Factory | Evolved 2 slots: Propulsion x2 8518 | -4/Factory | Identified exit to Upper Caves 8518 | -4/Factory | Discovered exit to Upper Caves (range 15) 8581 | -4/Factory | Entered Upper Caves 8851 | -4/Upper Caves | Build established: Hacker-Mutant 8963 | -4/Upper Caves | Learned location of Testing (-3) 9305 | -4/Upper Caves | Identified exit to Upper Caves 9305 | -4/Upper Caves | Discovered exit to Upper Caves (range 7) 9333 | -4/Upper Caves | Entered another Upper Caves area 9334 | -4/Upper Caves | Encountered a Warlord checkpoint 9517 | -4/Upper Caves | Attracted the attention of an 0b10 checkpoint 9536 | -4/Upper Caves | Learned location of Quarantine (-2) 9969 | -4/Upper Caves | Identified exit to Research 9969 | -4/Upper Caves | Discovered exit to Research (range 3) 10066 | -4/Upper Caves | Entered Research 10066 | -3/Research | Evolved 2 slots: Power x1, Utility x1 10181 | -3/Research | Found Fusion Bomb Launcher 10495 | -3/Research | Spotted B-86 Titan 10557 | -3/Research | Build established: Scavenger-Mutant 11365 | -3/Research | Found Antimissile System 11587 | -3/Research | System corruption reached 10% 11695 | -3/Research | Identified exit to Testing 11695 | -3/Research | Discovered exit to Testing (range 17) 12009 | -3/Research | Discovered exit to Testing (range 5) 12018 | -3/Research | Entered Testing 12019 | -3/Testing | Maximum security lockdown engaged 12069 | -3/Testing | Spotted Alpha 7 12075 | -3/Testing | Spotted 40-XJP(K) 12075 | -3/Testing | Spotted XD-NAN(K) 12081 | -3/Testing | Rewired 40-XJP(K) 12082 | -3/Testing | Rewired XD-NAN(K) 12088 | -3/Testing | Scanned by Researcher 12109 | -3/Testing | Destroyed Alpha 7 12115 | -3/Testing | Found Prototype Device 12118 | -3/Testing | Identified Exp. ECM Suite 12132 | -3/Testing | Found Prototype Ballistic Gun 12133 | -3/Testing | Identified Multirail 12139 | -3/Testing | Lost 4 parts (1p3u) 12147 | -3/Testing | Found Corrupted Prototype Slashing Weapon 12148 | -3/Testing | Identified Particle Cleaver 12163 | -3/Testing | Spotted Executioner 12163 | -3/Testing | Spotted Striker 12166 | -3/Testing | Spotted Striker 12167 | -3/Testing | Destroyed 40-XJP(K) 12167 | -3/Testing | Spotted Executioner 12182 | -3/Testing | Destroyed Striker 12186 | -3/Testing | Destroyed Striker 12207 | -3/Testing | Core integrity fell below 50% 12219 | -3/Testing | Core integrity fell below 20% 12222 | -3/Testing | Destroyed 19 combat bots 12248 | -3/Testing | Found Prototype Device 12249 | -3/Testing | Identified Exp. Thermal Shield 12259 | -3/Testing | Lost 27 parts (2p10n10u5w) 12270 | -3/Testing | Found Fusion Bomb Launcher 12301 | -3/Testing | Destroyed 12 combat bots 12348 | -3/Testing | Spotted Striker 12350 | -3/Testing | Destroyed by P-80 Master with Gamma Rifle Last Messages --------------- 12329_ Acquired Myomer Leg. 12334_ Acquired Mic. Antimatter Reactor. 12338_ System corrupted: Component data lost. 12340_ Acquired Prototype Leg. 12341_ Identified Adv. Myomer Leg. 12346_ C-30 ARC bursts open, deploying its payload. 12346_ P-80 Master unfolds itself. 12346_ E-15 Imp unfolds itself. 12346_ Slug penetrates Wall. 12347_ C-30 ARC bursts open, deploying its payload. 12347_ Striker unfolds itself. 12347_ H-77 Assassin unfolds itself. 12347_ M-36 Artificer unfolds itself. 12348_ Myomer Leg blown off. 12348_ Mic. Antimatter Reactor blown off. 12348_ Adv. Myomer Leg blown off. 12348_ E-15 Imp destroyed. 12349_ Acquired Adv. Myomer Leg. 12349_ Knocked back. 12350_ Acquired Myomer Leg. Map ----- +----------------------------------------------------+ | | | | | | | | | | | | | | | | | | | | | | | | | | | | | | | | | | | | | | | ?????????????????????????????????#?????? | | ????????????????????????????????? ?????? | | ????????????????????????????????? ?????? | | ??????########??????????????????# ?????? | | ??????# ! #??????????????????# ?????? | | ??##### !########???????????# ?????? | | ??# h %K%@* #???????????# ?????? | | ??# #h p ###### #????##?????# #????? | | ??# Cp%"T" #???????????# #????# #????? | | ??# # h #????????????# #??## #????? | | ??# C########???########### ### ###### | | ??# #??????????# # # | | ??# ########???# # | | ??# # """ #???# # ]] ## | | ??# #! """ #???# # !!![|[ =# | | ??# # """ #???# " !]! ]%! | | ??# # #???# % ## ]*! !==* | | ??# h# #???# ### !!! %!= | | ??# + #???# ## % | | ??# ########???#####+######### | | ??# #?"""#??????# | | ??# # "??????# | | ??# # "??????# | | ??# + "??????# | | ??# # " "#????################## | | ??# # """!"#????????# # | | ??# #?######????????# """" """" # | | ??# #???????????????# """" """" # | | ??# #???????????????# """" """" + | | ??# #???????????????# """" """" # | | ?## ##??????????????# """" """" # | +----------------------------------------------------+ Best States ------------- Heat Dissipation 71 Coolant Potential 80 Energy Generation 43 Energy Capacity 820 Matter Stores 450 Matter Capacity 450 Sight Range 23 Robot Scan Range 14 Terrain Scan Range 16 Terrain Scan Density 210 Jamming Range 14 EM Shielding 4 Armor Coverage 525 Resistance: KI 60 Resistance: TH 35 Resistance: EX 35 Resistance: EM 50 Resistance: I 35 Resistance: S 35 Resistance: P 35 Propulsion Shielding 90 Melee Speed Boost 20 Phase Shifting 5 Evasion (%) 60 Targeting Accuracy 8 Melee Accuracy 8 Target Analysis 8 Core Analysis 6 Recoil Reduction 6 Energy Filtering 30 Particle Charging 20 Kinecelleration 40 Salvage Targeting 2 Offensive Hacking 31 Item Schematics ----------------- Adv. Plasma Cannon | -7/Factory | Hacked Thunder Hammer | -3/Testing | Archive Exp. Field Recycling Unit | -3/Testing | Archive Exp. Target Analyzer | -3/Testing | Archive Robot Schematics ------------------ None Fabricated ------------ Nothing Alien Tech Used ----------------- None Achievements -------------- None Challenges ------------ None Game ------ Seed SmartbombDrainedProjector Manual? 0 Play Time 02:56:38 Cumulative 251.5 hours Start 2022.09.20 @ 14:22:40 End 2022.09.20 @ 19:25:20 Sessions 5 Manual Loads 0 Difficulty Explorer Special Mode None Game No. 262 Rogue 119 Adventurer 81 Explorer 62 Win Type - Total 13 Types 11/0/2/0/0/0/0/0/0 Lore% 37 Gallery% 72 Achievement% 58 Wizard Run 0 Options --------- ASCII 0 Keyboard 0 Movement Mouse Keybinds 0 Fullscreen 1 Font 12/Tallcaps Map View 83x54 Tactical HUD 1 Map Filters NONE Filters NONE Steam 1 RUN: 8cb10d66-a78e-4e8c-87de-089ee645093a